[Event "Titled Tuesday Blitz February 22 Late 2022"]
[White "Perez Gormaz, Matias"]
[Black "Garagulya, Konstantin"]
[WhiteFideId "3406342"]
[BlackFideId "4128931"]
[WhiteElo "2352"]
[BlackElo "2329"]
[Result "1-0"]
[Round "09"]
[TimeControl "180+1"]
[Date "2022.02.22"]
[WhiteClock "0:00:06"]
[BlackClock "0:00:02"]

1. e4 {[%clk 0:02:48]}  c5 {[%clk 0:02:54]} 2. Nf3 {[%clk 0:02:48]}  a6 {[%clk 0:02:55]} 3. g3 {[%clk 0:02:46]}  b5 {[%clk 0:02:53]} 4. d4 {[%clk 0:02:45]}  cxd4 {[%clk 0:02:53]} 5. Nxd4 {[%clk 0:02:46]}  Bb7 {[%clk 0:02:53]} 6. Bg2 {[%clk 0:02:47]}  g6 {[%clk 0:02:51]} 7. O-O {[%clk 0:02:46]}  Bg7 {[%clk 0:02:51]} 8. Nc3 {[%clk 0:02:46]}  d6 {[%clk 0:02:52]} 9. a4 {[%clk 0:02:43]}  bxa4 {[%clk 0:02:50]} 10. Nxa4 {[%clk 0:02:35]}  Nd7 {[%clk 0:02:50]} 11. c4 {[%clk 0:02:31]}  Qc8 {[%clk 0:02:49]} 12. b3 {[%clk 0:02:29]}  Ngf6 {[%clk 0:02:46]} 13. Re1 {[%clk 0:02:29]}  O-O {[%clk 0:02:45]} 14. Nc3 {[%clk 0:02:27]}  Nc5 {[%clk 0:02:44]} 15. Nd5 {[%clk 0:02:27]}  Re8 {[%clk 0:02:40]} 16. Nb6 {[%clk 0:02:27]}  Qb8 {[%clk 0:02:38]} 17. Nxa8 {[%clk 0:02:26]}  Qxa8 {[%clk 0:02:38]} 18. f3 {[%clk 0:02:24]}  Nfd7 {[%clk 0:02:30]} 19. Be3 {[%clk 0:02:18]}  Rb8 {[%clk 0:02:13]} 20. b4 {[%clk 0:02:12]}  Ne6 {[%clk 0:02:11]} 21. Nxe6 {[%clk 0:02:12]}  fxe6 {[%clk 0:02:09]} 22. Ra5 {[%clk 0:02:08]}  Rc8 {[%clk 0:02:02]} 23. Bh3 {[%clk 0:02:07]}  Kf7 {[%clk 0:01:57]} 24. Qb3 {[%clk 0:01:33]}  Nf8 {[%clk 0:01:43]} 25. Bf2 {[%clk 0:01:25]}  Qb8 {[%clk 0:01:36]} 26. Bf1 {[%clk 0:01:15]}  Qc7 {[%clk 0:01:33]} 27. h4 {[%clk 0:01:14]}  Nd7 {[%clk 0:01:28]} 28. f4 {[%clk 0:01:11]}  Nf6 {[%clk 0:01:25]} 29. Qf3 {[%clk 0:00:55]}  Qc6 {[%clk 0:01:04]} 30. Bd3 {[%clk 0:00:56]}  Rb8 {[%clk 0:00:52]} 31. h5 {[%clk 0:00:50]}  Bc8 {[%clk 0:00:41]} 32. hxg6+ {[%clk 0:00:49]}  hxg6 {[%clk 0:00:42]} 33. b5 {[%clk 0:00:47]}  Qc7 {[%clk 0:00:38]} 34. Raa1 {[%clk 0:00:37]}  axb5 {[%clk 0:00:37]} 35. cxb5 {[%clk 0:00:38]}  Bb7 {[%clk 0:00:23]} 36. Ra7 {[%clk 0:00:37]}  Qd7 {[%clk 0:00:14]} 37. Qd1 {[%clk 0:00:33]}  Qc8 {[%clk 0:00:09]} 38. e5 {[%clk 0:00:27]}  Nd7 {[%clk 0:00:09]} 39. exd6 {[%clk 0:00:18]}  exd6 {[%clk 0:00:09]} 40. Bxg6+ {[%clk 0:00:18]}  Kxg6 {[%clk 0:00:09]} 41. Qg4+ {[%clk 0:00:19]}  Kh7 {[%clk 0:00:07]} 42. Rxe6 {[%clk 0:00:16]}  Nf8 {[%clk 0:00:05]} 43. Qh5+ {[%clk 0:00:12]}  Kg8 {[%clk 0:00:06]} 44. Re7 {[%clk 0:00:13]}  Qc1+ {[%clk 0:00:05]} 45. Re1 {[%clk 0:00:06]}  Qc2 {[%clk 0:00:04]} 46. Re8 {[%clk 0:00:03]}  Rxe8 {[%clk 0:00:03]} 47. Qxe8 {[%clk 0:00:03]}  Qd1+ {[%clk 0:00:02]} 48. Qe1 {[%clk 0:00:04]}  Qd5 {[%clk 0:00:03]} 49. Rxb7 {[%clk 0:00:04]}  Qxb7 {[%clk 0:00:02]} 50. b6 {[%clk 0:00:05]}  Nd7 {[%clk 0:00:02]} 51. Qe7 {[%clk 0:00:05]}  Qc6 {[%clk 0:00:02]} 52. Qd8+ {[%clk 0:00:05]}  Bf8 {[%clk 0:00:02]} 53. Qc7 {[%clk 0:00:06]} 1-0


[Site "https://www.chess.com"]

[Event "Titled Tuesday Blitz February 22 Late 2022"]
[White "Petrovic, Aleksa"]
[Black "Todorovic, Bojan"]
[WhiteFideId "967629"]
[BlackFideId "917087"]
[WhiteElo "2139"]
[BlackElo "2266"]
[Result "0-1"]
[Round "09"]
[TimeControl "180+1"]
[Date "2022.02.23"]
[WhiteClock "0:00:08"]
[BlackClock "0:01:14"]

1. c4 {[%clk 0:02:54]}  g6 {[%clk 0:02:59]} 2. d4 {[%clk 0:02:51]}  Bg7 {[%clk 0:02:58]} 3. e4 {[%clk 0:02:51]}  d6 {[%clk 0:02:58]} 4. Nc3 {[%clk 0:02:51]}  Nf6 {[%clk 0:02:57]} 5. Be2 {[%clk 0:02:46]}  O-O {[%clk 0:02:56]} 6. Bg5 {[%clk 0:02:46]}  c5 {[%clk 0:02:55]} 7. d5 {[%clk 0:02:45]}  e6 {[%clk 0:02:51]} 8. Qd2 {[%clk 0:02:35]}  exd5 {[%clk 0:02:50]} 9. cxd5 {[%clk 0:02:35]}  Re8 {[%clk 0:02:47]} 10. f3 {[%clk 0:02:33]}  Na6 {[%clk 0:02:42]} 11. Bxa6 {[%clk 0:02:30]}  bxa6 {[%clk 0:02:41]} 12. Nge2 {[%clk 0:02:30]}  Rb8 {[%clk 0:02:40]} 13. O-O-O {[%clk 0:02:18]}  a5 {[%clk 0:02:29]} 14. h4 {[%clk 0:02:15]}  Qb6 {[%clk 0:02:13]} 15. g4 {[%clk 0:01:57]}  Nd7 {[%clk 0:02:07]} 16. Na4 {[%clk 0:01:28]}  Qb4 {[%clk 0:01:57]} 17. Qxb4 {[%clk 0:01:14]}  axb4 {[%clk 0:01:56]} 18. b3 {[%clk 0:01:07]}  Ne5 {[%clk 0:01:55]} 19. Rhf1 {[%clk 0:01:03]}  Ba6 {[%clk 0:01:54]} 20. Rd2 {[%clk 0:00:54]}  c4 {[%clk 0:01:46]} 21. bxc4 {[%clk 0:00:43]}  Nxc4 {[%clk 0:01:40]} 22. Rc2 {[%clk 0:00:41]}  Rec8 {[%clk 0:01:22]} 23. Re1 {[%clk 0:00:16]}  Na3 {[%clk 0:01:17]} 24. Rxc8+ {[%clk 0:00:15]}  Rxc8+ {[%clk 0:01:17]} 25. Kd1 {[%clk 0:00:15]}  Bb5 {[%clk 0:01:15]} 26. Nb2 {[%clk 0:00:08]}  Bxb2 {[%clk 0:01:14]} 0-1


[Site "https://www.chess.com"]

[Event "Titled Tuesday Blitz February 22 Late 2022"]
[White "Piesik, Piotr"]
[Black "Kim, Sergey"]
[WhiteFideId "1136194"]
[BlackFideId "13700570"]
[WhiteElo "2232"]
[BlackElo "2625"]
[Result "1-0"]
[Round "09"]
[TimeControl "180+1"]
[Date "2022.02.23"]
[WhiteClock "0:00:25"]
[BlackClock "0:00:04"]

1. Nf3 {[%clk 0:02:52]}  Nf6 {[%clk 0:02:59]} 2. g3 {[%clk 0:02:53]}  g6 {[%clk 0:02:59]} 3. Bg2 {[%clk 0:02:53]}  Bg7 {[%clk 0:03:00]} 4. O-O {[%clk 0:02:54]}  d6 {[%clk 0:03:01]} 5. d4 {[%clk 0:02:55]}  O-O {[%clk 0:03:01]} 6. Nbd2 {[%clk 0:02:55]}  Nbd7 {[%clk 0:02:59]} 7. e4 {[%clk 0:02:55]}  e5 {[%clk 0:02:59]} 8. dxe5 {[%clk 0:02:56]}  dxe5 {[%clk 0:02:59]} 9. Qe2 {[%clk 0:02:56]}  Re8 {[%clk 0:02:57]} 10. b3 {[%clk 0:02:56]}  c6 {[%clk 0:02:51]} 11. a4 {[%clk 0:02:56]}  a5 {[%clk 0:02:51]} 12. Bb2 {[%clk 0:02:56]}  Qc7 {[%clk 0:02:48]} 13. Nc4 {[%clk 0:02:55]}  b6 {[%clk 0:02:45]} 14. Rfd1 {[%clk 0:02:55]}  Ba6 {[%clk 0:02:45]} 15. Nfd2 {[%clk 0:02:56]}  Nc5 {[%clk 0:02:42]} 16. Qe1 {[%clk 0:02:56]}  Rad8 {[%clk 0:02:28]} 17. f3 {[%clk 0:02:53]}  Nh5 {[%clk 0:02:22]} 18. Bh3 {[%clk 0:02:51]}  Ne6 {[%clk 0:02:19]} 19. Bxe6 {[%clk 0:02:51]}  Rxe6 {[%clk 0:02:18]} 20. Ne3 {[%clk 0:02:51]}  Red6 {[%clk 0:02:12]} 21. Ndc4 {[%clk 0:02:50]}  Rxd1 {[%clk 0:02:11]} 22. Rxd1 {[%clk 0:02:51]}  f6 {[%clk 0:01:59]} 23. Ba3 {[%clk 0:02:47]}  Bc8 {[%clk 0:01:47]} 24. Rxd8+ {[%clk 0:02:45]}  Qxd8 {[%clk 0:01:46]} 25. Qd1 {[%clk 0:02:45]}  Qe8 {[%clk 0:01:19]} 26. Nxb6 {[%clk 0:02:41]}  f5 {[%clk 0:01:14]} 27. Nxc8 {[%clk 0:02:40]}  Qxc8 {[%clk 0:01:14]} 28. exf5 {[%clk 0:02:38]}  gxf5 {[%clk 0:01:14]} 29. Qd3 {[%clk 0:02:36]}  f4 {[%clk 0:01:12]} 30. Nf5 {[%clk 0:02:34]}  Qe8 {[%clk 0:01:05]} 31. Qc4+ {[%clk 0:02:19]}  Kh8 {[%clk 0:01:05]} 32. Nd6 {[%clk 0:02:19]}  Qa8 {[%clk 0:00:42]} 33. Nf7+ {[%clk 0:02:16]}  Kg8 {[%clk 0:00:42]} 34. Nxe5+ {[%clk 0:02:15]}  Kh8 {[%clk 0:00:43]} 35. Nf7+ {[%clk 0:02:06]}  Kg8 {[%clk 0:00:42]} 36. g4 {[%clk 0:01:56]}  Nf6 {[%clk 0:00:38]} 37. Ne5+ {[%clk 0:01:53]}  Kh8 {[%clk 0:00:35]} 38. Qxc6 {[%clk 0:01:41]}  Qa7+ {[%clk 0:00:29]} 39. Bc5 {[%clk 0:01:41]}  Qb8 {[%clk 0:00:28]} 40. Nd3 {[%clk 0:01:15]}  Qd8 {[%clk 0:00:22]} 41. Qd6 {[%clk 0:01:11]}  Qe8 {[%clk 0:00:21]} 42. Qe7 {[%clk 0:01:03]}  Qc8 {[%clk 0:00:20]} 43. Nxf4 {[%clk 0:00:43]}  Ng8 {[%clk 0:00:18]} 44. Qd6 {[%clk 0:00:38]}  Qe8 {[%clk 0:00:16]} 45. Ne6 {[%clk 0:00:38]}  Bf6 {[%clk 0:00:15]} 46. Bd4 {[%clk 0:00:35]}  Qg6 {[%clk 0:00:15]} 47. Bxf6+ {[%clk 0:00:35]}  Nxf6 {[%clk 0:00:12]} 48. Qf8+ {[%clk 0:00:34]}  Ng8 {[%clk 0:00:12]} 49. Nd8 {[%clk 0:00:30]}  h6 {[%clk 0:00:10]} 50. Nf7+ {[%clk 0:00:23]}  Kh7 {[%clk 0:00:10]} 51. Ne5 {[%clk 0:00:23]}  Qb6+ {[%clk 0:00:06]} 52. Kg2 {[%clk 0:00:23]}  Qe6 {[%clk 0:00:03]} 53. Qf7+ {[%clk 0:00:23]}  Qxf7 {[%clk 0:00:03]} 54. Nxf7 {[%clk 0:00:24]}  Kg6 {[%clk 0:00:04]} 55. Ne5+ {[%clk 0:00:24]}  Kf6 {[%clk 0:00:04]} 56. Nc4 {[%clk 0:00:25]}  Ne7 {[%clk 0:00:03]} 57. Nxa5 {[%clk 0:00:25]}  Nd5 {[%clk 0:00:04]} 58. Nc4 {[%clk 0:00:25]}  Kg5 {[%clk 0:00:03]} 59. Kg3 {[%clk 0:00:25]}  Nf4 {[%clk 0:00:04]} 60. h4+ {[%clk 0:00:25]} 1-0


[Site "https://www.chess.com"]

[Event "Titled Tuesday Blitz February 22 Late 2022"]
[White "Ponkratov, Pavel"]
[Black "Goltseva, Ekaterina"]
[WhiteFideId "4157800"]
[BlackFideId "24173770"]
[WhiteElo "2487"]
[BlackElo "2140"]
[Result "1-0"]
[Round "09"]
[TimeControl "180+1"]
[Date "2022.02.22"]
[WhiteClock "0:01:42"]
[BlackClock "0:00:33"]

1. d4 {[%clk 0:02:56]}  Nf6 {[%clk 0:02:59]} 2. c4 {[%clk 0:02:57]}  e6 {[%clk 0:02:59]} 3. Nc3 {[%clk 0:02:57]}  Bb4 {[%clk 0:02:59]} 4. Qa4 {[%clk 0:02:58]}  Bxc3+ {[%clk 0:02:57]} 5. bxc3 {[%clk 0:02:56]}  c5 {[%clk 0:02:58]} 6. Bg5 {[%clk 0:02:51]}  h6 {[%clk 0:02:54]} 7. Bh4 {[%clk 0:02:51]}  g5 {[%clk 0:02:48]} 8. Bg3 {[%clk 0:02:51]}  Nc6 {[%clk 0:02:43]} 9. dxc5 {[%clk 0:02:46]}  Ne4 {[%clk 0:02:40]} 10. e3 {[%clk 0:02:38]}  Qf6 {[%clk 0:02:35]} 11. Qa3 {[%clk 0:02:29]}  Nxc3 {[%clk 0:02:24]} 12. Bd3 {[%clk 0:02:19]}  Ne4 {[%clk 0:02:13]} 13. Rc1 {[%clk 0:02:17]}  Nxg3 {[%clk 0:02:11]} 14. hxg3 {[%clk 0:02:17]}  b6 {[%clk 0:01:59]} 15. Nf3 {[%clk 0:02:14]}  bxc5 {[%clk 0:01:49]} 16. Qxc5 {[%clk 0:02:06]}  Rb8 {[%clk 0:01:38]} 17. O-O {[%clk 0:02:02]}  Qe7 {[%clk 0:01:33]} 18. Qxe7+ {[%clk 0:02:01]}  Kxe7 {[%clk 0:01:33]} 19. c5 {[%clk 0:02:01]}  Rb7 {[%clk 0:01:24]} 20. Rfd1 {[%clk 0:02:00]}  Rb2 {[%clk 0:01:21]} 21. a4 {[%clk 0:01:51]}  Nb4 {[%clk 0:01:18]} 22. Be4 {[%clk 0:01:47]}  f5 {[%clk 0:01:08]} 23. Bb1 {[%clk 0:01:45]}  Bb7 {[%clk 0:01:07]} 24. Ne5 {[%clk 0:01:45]}  Rd8 {[%clk 0:01:03]} 25. Nc4 {[%clk 0:01:44]}  Rb3 {[%clk 0:00:38]} 26. Na5 {[%clk 0:01:44]}  Rxb1 {[%clk 0:00:34]} 27. Rxb1 {[%clk 0:01:43]}  Nd5 {[%clk 0:00:33]} 28. Nxb7 {[%clk 0:01:42]}  Nc3 {[%clk 0:00:33]} 29. Nxd8 {[%clk 0:01:42]} 1-0


[Site "https://www.chess.com"]

[Event "Titled Tuesday Blitz February 22 Late 2022"]
[White "Przybylski, Wojciech"]
[Black "Samarth, J Rao"]
[WhiteFideId "1117599"]
[BlackFideId "46652370"]
[WhiteElo "2133"]
[BlackElo "1514"]
[Result "1-0"]
[Round "09"]
[TimeControl "180+1"]
[Date "2022.02.23"]
[WhiteClock "0:00:04"]
[BlackClock "0:00:02"]

1. e4 {[%clk 0:03:00]}  c5 {[%clk 0:02:53]} 2. Nf3 {[%clk 0:02:57]}  d6 {[%clk 0:02:53]} 3. d4 {[%clk 0:02:57]}  cxd4 {[%clk 0:02:53]} 4. Nxd4 {[%clk 0:02:58]}  Nf6 {[%clk 0:02:52]} 5. Nc3 {[%clk 0:02:59]}  a6 {[%clk 0:02:51]} 6. Be3 {[%clk 0:02:58]}  e5 {[%clk 0:02:42]} 7. Nb3 {[%clk 0:02:58]}  Be6 {[%clk 0:02:36]} 8. f3 {[%clk 0:02:58]}  Be7 {[%clk 0:02:35]} 9. Qd2 {[%clk 0:02:58]}  h5 {[%clk 0:02:34]} 10. Nd5 {[%clk 0:02:58]}  Bxd5 {[%clk 0:02:27]} 11. exd5 {[%clk 0:02:58]}  Nbd7 {[%clk 0:02:27]} 12. c4 {[%clk 0:02:58]}  Qc7 {[%clk 0:02:27]} 13. O-O-O {[%clk 0:02:54]}  a5 {[%clk 0:02:27]} 14. Kb1 {[%clk 0:02:30]}  b6 {[%clk 0:02:17]} 15. Bd3 {[%clk 0:02:19]}  a4 {[%clk 0:01:58]} 16. Na1 {[%clk 0:02:19]}  Nc5 {[%clk 0:01:59]} 17. Nc2 {[%clk 0:02:15]}  O-O {[%clk 0:01:54]} 18. Na3 {[%clk 0:02:14]}  Rfb8 {[%clk 0:01:49]} 19. Bc2 {[%clk 0:01:59]}  Ne8 {[%clk 0:01:42]} 20. g4 {[%clk 0:01:56]}  h4 {[%clk 0:01:39]} 21. g5 {[%clk 0:01:56]}  Qd8 {[%clk 0:01:39]} 22. Rhg1 {[%clk 0:01:54]}  Nc7 {[%clk 0:01:39]} 23. g6 {[%clk 0:01:49]}  b5 {[%clk 0:01:35]} 24. gxf7+ {[%clk 0:01:47]}  Kxf7 {[%clk 0:01:33]} 25. Qg2 {[%clk 0:01:46]}  Bf6 {[%clk 0:01:29]} 26. Qg6+ {[%clk 0:01:40]}  Kf8 {[%clk 0:01:25]} 27. Bh6 {[%clk 0:01:23]}  Qe7 {[%clk 0:01:19]} 28. Bf5 {[%clk 0:01:02]}  bxc4 {[%clk 0:01:09]} 29. Nxc4 {[%clk 0:01:00]}  Nb5 {[%clk 0:01:02]} 30. Qh7 {[%clk 0:00:46]}  Qf7 {[%clk 0:00:48]} 31. Be6 {[%clk 0:00:32]}  Nxe6 {[%clk 0:00:37]} 32. dxe6 {[%clk 0:00:32]}  Qg8 {[%clk 0:00:37]} 33. Qf5 {[%clk 0:00:22]}  Ke7 {[%clk 0:00:17]} 34. Bxg7 {[%clk 0:00:18]}  Qxe6 {[%clk 0:00:13]} 35. Bxf6+ {[%clk 0:00:17]}  Qxf6 {[%clk 0:00:13]} 36. Qh7+ {[%clk 0:00:17]}  Ke6 {[%clk 0:00:02]} 37. Rg6 {[%clk 0:00:16]}  Nc3+ {[%clk 0:00:02]} 38. Kc2 {[%clk 0:00:16]}  Nxd1 {[%clk 0:00:03]} 39. Rxf6+ {[%clk 0:00:15]}  Kxf6 {[%clk 0:00:04]} 40. Qxh4+ {[%clk 0:00:15]}  Ke6 {[%clk 0:00:04]} 41. Qh6+ {[%clk 0:00:15]}  Kd5 {[%clk 0:00:04]} 42. Qxd6+ {[%clk 0:00:08]}  Kxc4 {[%clk 0:00:04]} 43. b3+ {[%clk 0:00:07]}  axb3+ {[%clk 0:00:03]} 44. axb3+ {[%clk 0:00:07]}  Kb5 {[%clk 0:00:03]} 45. Qxd1 {[%clk 0:00:07]}  Ra2+ {[%clk 0:00:01]} 46. Kb1 {[%clk 0:00:06]}  Rba8 {[%clk 0:00:01]} 47. Qd5+ {[%clk 0:00:05]}  Kb4 {[%clk 0:00:02]} 48. Qc4+ {[%clk 0:00:06]}  Ka3 {[%clk 0:00:01]} 49. h4 {[%clk 0:00:04]}  Rb2+ {[%clk 0:00:01]} 50. Kc1 {[%clk 0:00:05]}  Rxb3 {[%clk 0:00:02]} 51. Qc5+ {[%clk 0:00:05]}  Rb4 {[%clk 0:00:01]} 52. Kc2 {[%clk 0:00:04]}  Rb8 {[%clk 0:00:01]} 53. h5 {[%clk 0:00:04]}  Ka4 {[%clk 0:00:02]} 54. Qc6+ {[%clk 0:00:04]}  Ka5 {[%clk 0:00:02]} 55. Qc7+ {[%clk 0:00:04]}  Ka6 {[%clk 0:00:02]} 56. Qc6+ {[%clk 0:00:03]}  R4b6 {[%clk 0:00:02]} 57. Qa4+ {[%clk 0:00:03]}  Kb7 {[%clk 0:00:02]} 58. Qd7+ {[%clk 0:00:03]}  Ka6 {[%clk 0:00:02]} 59. Qa4+ {[%clk 0:00:03]}  Kb7 {[%clk 0:00:02]} 60. Qe4+ {[%clk 0:00:03]}  Rc6+ {[%clk 0:00:02]} 61. Kd2 {[%clk 0:00:02]}  Rd8+ {[%clk 0:00:02]} 62. Ke2 {[%clk 0:00:03]}  Re8 {[%clk 0:00:02]} 63. h6 {[%clk 0:00:03]}  Kc7 {[%clk 0:00:03]} 64. h7 {[%clk 0:00:03]}  Rh6 {[%clk 0:00:02]} 65. Qc4+ {[%clk 0:00:03]}  Kd7 {[%clk 0:00:02]} 66. Qf7+ {[%clk 0:00:03]}  Re7 {[%clk 0:00:02]} 67. Qf5+ {[%clk 0:00:02]}  Ke8 {[%clk 0:00:02]} 68. Qg5 {[%clk 0:00:02]}  Rhxh7 {[%clk 0:00:02]} 69. Qg8+ {[%clk 0:00:02]}  Kd7 {[%clk 0:00:02]} 70. Qd5+ {[%clk 0:00:03]}  Kc7 {[%clk 0:00:02]} 71. Ke3 {[%clk 0:00:04]}  Rd7 {[%clk 0:00:02]} 72. Qa5+ {[%clk 0:00:04]}  Kb7 {[%clk 0:00:02]} 73. Qb5+ {[%clk 0:00:04]}  Kc7 {[%clk 0:00:02]} 74. Ke4 {[%clk 0:00:04]} 1-0


[Site "https://www.chess.com"]

[Event "Titled Tuesday Blitz February 22 Late 2022"]
[White "Romero Ruscalleda, Josep"]
[Black "Novikov, Evgenij"]
[WhiteFideId "2231859"]
[BlackFideId "4125380"]
[WhiteElo "2385"]
[BlackElo "2242"]
[Result "0-1"]
[Round "09"]
[TimeControl "180+1"]
[Date "2022.02.23"]
[WhiteClock "0:00:09"]
[BlackClock "0:00:03"]

1. e4 {[%clk 0:02:56]}  c5 {[%clk 0:03:00]} 2. c3 {[%clk 0:02:56]}  Nf6 {[%clk 0:02:56]} 3. e5 {[%clk 0:02:56]}  Nd5 {[%clk 0:02:57]} 4. Nf3 {[%clk 0:02:56]}  Nc6 {[%clk 0:02:57]} 5. Bc4 {[%clk 0:02:56]}  e6 {[%clk 0:02:57]} 6. d4 {[%clk 0:02:55]}  d6 {[%clk 0:02:57]} 7. O-O {[%clk 0:02:42]}  Be7 {[%clk 0:02:54]} 8. a3 {[%clk 0:02:41]}  O-O {[%clk 0:02:50]} 9. Nbd2 {[%clk 0:02:29]}  a6 {[%clk 0:02:43]} 10. exd6 {[%clk 0:02:21]}  Bxd6 {[%clk 0:02:41]} 11. Ne4 {[%clk 0:02:20]}  cxd4 {[%clk 0:02:40]} 12. Nxd6 {[%clk 0:02:15]}  Qxd6 {[%clk 0:02:41]} 13. Nxd4 {[%clk 0:02:15]}  Ne5 {[%clk 0:02:29]} 14. Be2 {[%clk 0:02:11]}  b5 {[%clk 0:02:27]} 15. Nf3 {[%clk 0:02:09]}  Bb7 {[%clk 0:02:25]} 16. a4 {[%clk 0:02:01]}  bxa4 {[%clk 0:02:04]} 17. c4 {[%clk 0:01:56]}  Ng4 {[%clk 0:01:37]} 18. h3 {[%clk 0:01:46]}  Ngf6 {[%clk 0:01:21]} 19. cxd5 {[%clk 0:01:45]}  Bxd5 {[%clk 0:01:14]} 20. Rxa4 {[%clk 0:01:44]}  Rfd8 {[%clk 0:01:11]} 21. Be3 {[%clk 0:01:34]}  Qc6 {[%clk 0:01:11]} 22. Rd4 {[%clk 0:01:28]}  Rdb8 {[%clk 0:01:08]} 23. Qc1 {[%clk 0:01:15]}  Qb7 {[%clk 0:01:02]} 24. Ra4 {[%clk 0:01:10]}  a5 {[%clk 0:00:59]} 25. Bd4 {[%clk 0:01:06]}  Ne4 {[%clk 0:00:57]} 26. Qe3 {[%clk 0:00:59]}  Nd6 {[%clk 0:00:57]} 27. Qe5 {[%clk 0:00:56]}  Nf5 {[%clk 0:00:54]} 28. Bc3 {[%clk 0:00:56]}  f6 {[%clk 0:00:46]} 29. Qf4 {[%clk 0:00:50]}  Qd7 {[%clk 0:00:45]} 30. Rxa5 {[%clk 0:00:45]}  Rxa5 {[%clk 0:00:44]} 31. Bxa5 {[%clk 0:00:45]}  Rxb2 {[%clk 0:00:44]} 32. Bc3 {[%clk 0:00:42]}  Rxe2 {[%clk 0:00:43]} 33. Qb8+ {[%clk 0:00:40]}  Kf7 {[%clk 0:00:42]} 34. Bb4 {[%clk 0:00:37]}  Bxf3 {[%clk 0:00:40]} 35. gxf3 {[%clk 0:00:35]}  Nh4 {[%clk 0:00:33]} 36. Ra1 {[%clk 0:00:28]}  Nxf3+ {[%clk 0:00:31]} 37. Kf1 {[%clk 0:00:26]}  Qd3 {[%clk 0:00:20]} 38. Ra7+ {[%clk 0:00:24]}  Kg6 {[%clk 0:00:21]} 39. Qg3+ {[%clk 0:00:23]}  Kh6 {[%clk 0:00:03]} 40. Qxg7+ {[%clk 0:00:21]}  Kh5 {[%clk 0:00:04]} 41. Qg4+ {[%clk 0:00:19]}  Kh6 {[%clk 0:00:04]} 42. Qf4+ {[%clk 0:00:17]}  Ng5 {[%clk 0:00:02]} 43. Qxf6+ {[%clk 0:00:16]}  Kh5 {[%clk 0:00:03]} 44. Kg1 {[%clk 0:00:10]}  Re1+ {[%clk 0:00:02]} 45. Kh2 {[%clk 0:00:09]}  Qxh3# {[%clk 0:00:03]} 0-1


[Site "https://www.chess.com"]

[Event "Titled Tuesday Blitz February 22 Late 2022"]
[White "Rorrer, Grayson"]
[Black "Karttunen, Mika"]
[WhiteFideId "30944996"]
[BlackFideId "502081"]
[WhiteElo "2122"]
[BlackElo "2343"]
[Result "1-0"]
[Round "09"]
[TimeControl "180+1"]
[Date "2022.02.22"]
[WhiteClock "0:00:04"]
[BlackClock "0:00:02"]

1. e4 {[%clk 0:03:00]}  c5 {[%clk 0:02:59]} 2. Nf3 {[%clk 0:03:00]}  d6 {[%clk 0:02:59]} 3. c3 {[%clk 0:02:59]}  Nf6 {[%clk 0:02:58]} 4. Be2 {[%clk 0:03:00]}  Nc6 {[%clk 0:02:56]} 5. Qc2 {[%clk 0:02:57]}  e5 {[%clk 0:02:55]} 6. O-O {[%clk 0:02:57]}  Be7 {[%clk 0:02:55]} 7. h3 {[%clk 0:02:56]}  Be6 {[%clk 0:02:53]} 8. Rd1 {[%clk 0:02:56]}  Rc8 {[%clk 0:02:53]} 9. Qa4 {[%clk 0:02:55]}  O-O {[%clk 0:02:47]} 10. d4 {[%clk 0:02:51]}  Bd7 {[%clk 0:02:07]} 11. dxc5 {[%clk 0:02:29]}  Nd4 {[%clk 0:01:55]} 12. Qxa7 {[%clk 0:02:06]}  Nxe2+ {[%clk 0:01:54]} 13. Kh2 {[%clk 0:02:06]}  Rxc5 {[%clk 0:01:29]} 14. Be3 {[%clk 0:02:04]}  Rc6 {[%clk 0:01:21]} 15. Rd2 {[%clk 0:01:51]}  Nf4 {[%clk 0:01:15]} 16. Bxf4 {[%clk 0:01:44]}  exf4 {[%clk 0:01:15]} 17. e5 {[%clk 0:01:45]}  dxe5 {[%clk 0:01:03]} 18. Nxe5 {[%clk 0:01:43]}  Rd6 {[%clk 0:01:03]} 19. Re2 {[%clk 0:01:22]}  Rd1 {[%clk 0:00:43]} 20. Qxb7 {[%clk 0:01:13]}  Bd6 {[%clk 0:00:43]} 21. Nf3 {[%clk 0:01:02]}  Be6 {[%clk 0:00:38]} 22. Rd2 {[%clk 0:00:54]}  Bd5 {[%clk 0:00:33]} 23. Qb5 {[%clk 0:00:36]}  Bxf3 {[%clk 0:00:32]} 24. gxf3 {[%clk 0:00:37]}  Rxd2 {[%clk 0:00:32]} 25. Nxd2 {[%clk 0:00:38]}  Qe7 {[%clk 0:00:27]} 26. Qf1 {[%clk 0:00:28]}  Rb8 {[%clk 0:00:23]} 27. b3 {[%clk 0:00:26]}  Qe5 {[%clk 0:00:23]} 28. Qd3 {[%clk 0:00:24]}  Bc5 {[%clk 0:00:23]} 29. Nc4 {[%clk 0:00:22]}  Qh5 {[%clk 0:00:21]} 30. Rf1 {[%clk 0:00:20]}  Qh4 {[%clk 0:00:21]} 31. Qd2 {[%clk 0:00:18]}  g5 {[%clk 0:00:20]} 32. b4 {[%clk 0:00:18]}  Be7 {[%clk 0:00:19]} 33. Re1 {[%clk 0:00:17]}  Bf8 {[%clk 0:00:18]} 34. Qd4 {[%clk 0:00:15]}  Bg7 {[%clk 0:00:10]} 35. Qd2 {[%clk 0:00:16]}  h5 {[%clk 0:00:10]} 36. Ne5 {[%clk 0:00:15]}  Re8 {[%clk 0:00:09]} 37. Nd3 {[%clk 0:00:12]}  Rd8 {[%clk 0:00:09]} 38. Qe2 {[%clk 0:00:11]}  g4 {[%clk 0:00:09]} 39. fxg4 {[%clk 0:00:10]}  hxg4 {[%clk 0:00:09]} 40. Nxf4 {[%clk 0:00:10]}  gxh3 {[%clk 0:00:09]} 41. Nxh3 {[%clk 0:00:10]}  Ng4+ {[%clk 0:00:09]} 42. Kg2 {[%clk 0:00:10]}  Nh6 {[%clk 0:00:08]} 43. Qe4 {[%clk 0:00:10]}  Qh5 {[%clk 0:00:07]} 44. a4 {[%clk 0:00:06]}  Ng4 {[%clk 0:00:03]} 45. Qf3 {[%clk 0:00:03]}  Qh4 {[%clk 0:00:03]} 46. Qg3 {[%clk 0:00:03]}  Qh5 {[%clk 0:00:03]} 47. Nf4 {[%clk 0:00:03]}  Qf5 {[%clk 0:00:03]} 48. Nh3 {[%clk 0:00:03]}  Nf6 {[%clk 0:00:03]} 49. Qf4 {[%clk 0:00:03]}  Qg6+ {[%clk 0:00:03]} 50. Qg5 {[%clk 0:00:04]}  Qd3 {[%clk 0:00:03]} 51. Re3 {[%clk 0:00:03]}  Qd1 {[%clk 0:00:03]} 52. Rg3 {[%clk 0:00:03]}  Ne8 {[%clk 0:00:02]} 53. Nf4 {[%clk 0:00:03]}  Kf8 {[%clk 0:00:01]} 54. Nh5 {[%clk 0:00:02]}  Bf6 {[%clk 0:00:01]} 55. Nxf6 {[%clk 0:00:02]}  Nxf6 {[%clk 0:00:02]} 56. Qxf6 {[%clk 0:00:03]}  Qd5+ {[%clk 0:00:02]} 57. Kg1 {[%clk 0:00:03]}  Qd1+ {[%clk 0:00:02]} 58. Kh2 {[%clk 0:00:03]}  Qh5+ {[%clk 0:00:02]} 59. Kg2 {[%clk 0:00:03]}  Qd5+ {[%clk 0:00:02]} 60. Rf3 {[%clk 0:00:04]}  Qh5 {[%clk 0:00:02]} 61. Qxd8+ {[%clk 0:00:04]} 1-0


[Site "https://www.chess.com"]